bitfinex/quotes_ETHUSD_20220202
["timestamp","ask_amount","ask_price","bid_price","bid_amount"]
[1643833361522,0.78302222,2714.8,2714.4,0.92609874]
[1643833361725,0.78302222,2714.8,2714.4,0.00507874]
[1643833361921,0.96712222,2714.8,2714.1,0.00196301]
[1643833362121,0.78302222,2714.8,2714.1,0.00196301]
[1643833362322,0.78302222,2714.8,2714.4,0.00507878]
[1643833363130,0.78302222,2714.8,2714.1,0.00196301]
[1643833363427,0.1841,2714.8,2714.4,0.00507878]
[1643833363624,0.1841,2715.0,2714.4,0.00507878]
[1643833364224,0.18566749,2714.6,2714.4,0.00507878]
[1643833364471,0.87812543,2714.9,2714.3,0.9205843]
[1643833364673,0.87812543,2714.9,2714.4,0.00508829]
[1643833365072,0.1841,2715.0,2714.6,0.92099]
[1643833365271,0.00446546,2715.1,2714.6,0.92095]
[1643833365471,0.00446546,2715.1,2714.7,0.1907579]
[1643833365671,0.00446546,2715.1,2714.5,0.00196301]
[1643833365672,0.00446546,2715.1,2714.5,1.24936301]
[1643833366073,0.00446546,2715.1,2714.4,0.71918839]
[1643833366074,0.00446546,2715.1,2714.6,0.00196301]
[1643833366469,0.18856546,2715.1,2714.6,0.00196301]
[1643833366670,0.18856546,2715.1,2714.4,0.00508839]
[1643833366671,0.00446546,2715.1,2714.4,0.0070514]
[1643833366870,0.00446546,2715.1,2714.4,0.00196301]
[1643833367072,0.00446546,2715.1,2714.4,0.0070514]
[1643833367769,0.00446546,2715.1,2714.4,0.00508839]
[1643833367970,0.18192649,2714.5,2714.2,0.92307301]
[1643833368221,0.00446546,2715.1,2714.4,0.00508693]
[1643833368724,0.86977478,2714.5,2714.4,0.00508693]
[1643833369220,0.86977478,2714.5,2714.2,1.10521]
[1643833369420,0.86977478,2714.5,2714.2,0.92111]
[1643833369722,0.18866967,2714.7,2714.3,0.92616683]
[1643833370121,0.00446546,2715.1,2714.3,0.92616683]
[1643833370321,0.00446546,2715.1,2714.3,0.92108]
[1643833370620,0.6946104,2714.5,2714.4,0.00704978]
[1643833371021,0.00446546,2715.1,2714.7,0.1874853]
[1643833371226,0.16009845,2715.3,2714.7,0.1874853]
[1643833371227,0.16009845,2715.3,2714.7,0.53]
[1643833371425,0.00508401,2715.8,2714.8,1.10501]
[1643833371426,0.1841,2715.7,2714.8,1.10501]
[1643833371621,0.1841,2716.2,2714.8,5.06047301]
[1643833371874,1.5615432,2716.1,2714.9,3.28517978]
[1643833372075,0.69170437,2715.3,2714.9,3.28517978]
[1643833372277,0.69170437,2715.3,2714.9,1.1513]
[1643833372476,0.16852894,2715.2,2715.1,0.92076]
[1643833372676,0.16852894,2715.2,2714.9,1.84152]
[1643833373475,0.69170437,2715.3,2714.9,1.84152]
[1643833373676,0.69170437,2715.3,2715.1,0.92082]
[1643833374277,0.69170437,2715.3,2715.1,1.84162]
[1643833376321,0.69170437,2715.3,2714.9,1.84152]
[1643833377723,0.2189957,2715.0,2714.9,1.84152]
[1643833377924,0.2189957,2715.0,2714.8,1.10697301]
[1643833378123,0.2189957,2715.0,2714.8,0.18606301]
[1643833378725,0.2189957,2715.0,2714.8,0.1841]
[1643833378924,1.56197359,2714.9,2714.6,0.00196301]
[1643833379125,0.75425968,2714.8,2714.6,0.00196301]
[1643833379390,0.75425968,2714.8,2714.4,0.00545312]
[1643833379986,0.75425968,2714.8,2714.3,0.00196301]
[1643833380186,0.75425968,2714.8,2714.4,0.00545288]
[1643833380388,0.19722777,2714.5,2714.4,0.00545288]
[1643833380587,0.75425968,2714.8,2714.4,0.00545288]
[1643833381191,0.75425968,2714.8,2714.3,0.7244425]
[1643833381391,0.1841,2715.5,2714.4,0.00545288]
[1643833381588,1.19804514,2715.8,2714.5,0.19286399]
[1643833381589,0.1981887,2715.1,2714.5,0.19286399]
[1643833381789,0.1981887,2715.1,2714.6,0.00196301]
[1643833382490,0.1981887,2715.1,2714.6,0.92096]
[1643833382491,2.43924828,2715.0,2714.6,0.92096]
[1643833382691,0.87737745,2715.0,2714.6,0.92096]
[1643833382889,0.87737745,2715.0,2714.6,0.92292301]
[1643833383928,0.87607474,2715.0,2714.6,0.92292301]
[1643833384225,1.56192781,2714.9,2714.6,0.92292301]
[1643833384425,0.87607474,2715.0,2714.6,0.92292301]
[1643833384824,0.87607474,2715.0,2714.6,0.00196301]
[1643833385226,0.87607474,2715.0,2714.4,0.00741605]
[1643833386026,0.87607474,2715.0,2714.4,0.00196301]
[1643833386226,0.87607474,2715.0,2714.4,0.00741597]
[1643833387273,0.87607474,2715.0,2714.4,0.00196301]
[1643833387469,0.87607474,2715.0,2714.4,0.00741597]
[1643833387669,0.87607474,2715.0,2714.6,0.92097]
[1643833388270,0.87607474,2715.0,2714.6,0.92293301]
[1643833388872,0.22247891,2715.2,2714.6,1.10850431]
[1643833389073,0.1841,2715.5,2714.7,0.00196301]
[1643833389272,0.88200133,2715.7,2714.7,0.00196301]
[1643833390075,0.21740868,2715.1,2714.7,0.00196301]
[1643833393321,0.94575728,2715.2,2714.7,0.00196301]
[1643833394475,0.99999999,2715.1,2714.7,0.00196301]
[1643833394674,0.99999999,2715.1,2714.3,0.1841]
[1643833394675,0.1841,2715.1,2714.4,0.00741617]
[1643833394876,1.88200132,2715.1,2714.4,0.00741617]
[1643833395076,2.88200132,2715.1,2714.4,0.00741617]
[1643833395273,0.9213882,2714.8,2714.4,0.00545316]
[1643833395473,0.1841,2714.7,2714.4,0.00545316]
[1643833395675,1.18409999,2714.7,2713.8,0.00196301]
[1643833395976,1.18409999,2714.7,2713.5,0.1841]
[1643833395977,1.88200132,2714.7,2714.4,0.00545288]
[1643833396176,2.88200132,2714.7,2714.4,0.00545288]
[1643833396778,2.88200132,2714.7,2713.6,0.00196301]
[1643833396779,0.78872566,2714.6,2713.6,0.00196301]
[1643833396977,0.16179975,2714.4,2713.7,0.02181683]
[1643833397277,0.86989288,2713.8,2713.7,0.02181683]
[1643833397580,0.1842,2714.5,2713.7,0.02181683]
[1643833397775,2.60007085,2714.5,2713.7,0.02181683]
[1643833397976,2.60007085,2714.5,2713.6,0.00196301]
[1643833398223,2.60007085,2714.5,2714.0,0.00545329]
[1643833398620,0.85682272,2714.4,2714.0,0.00545329]
[1643833398821,2.18716091,2714.3,2714.0,0.00545329]
[1643833399222,2.18716091,2714.3,2713.6,0.00196301]
[1643833399424,0.72329806,2713.7,2713.6,0.02181619]
[1643833399622,0.92091469,2713.7,2713.6,0.02181619]
[1643833399825,0.19761663,2713.7,2713.6,0.02181619]
[1643833400425,0.19761663,2713.7,2713.4,0.1]
[1643833400629,0.19761663,2713.7,2713.5,0.00545384]
[1643833401526,0.19761663,2713.7,2713.4,0.1]
[1643833401969,0.19761663,2713.7,2713.5,0.0054539]
[1643833402169,0.72409452,2713.6,2713.5,0.0054539]
[1643833402773,0.72409452,2713.6,2713.4,0.1]
[1643833403169,0.72409452,2713.6,2713.4,0.10545396]
[1643833404069,0.72409452,2713.6,2713.4,0.1]
[1643833404271,0.72409452,2713.6,2713.4,0.10545402]
[1643833404473,2.54573643,2713.6,2713.4,0.10545402]
[1643833404673,0.72409452,2713.6,2713.4,0.10545402]
[1643833405278,0.72409452,2713.6,2713.4,0.1]
[1643833405473,0.72409452,2713.6,2713.4,0.10545402]
[1643833405720,2.35,2713.5,2713.4,0.10545402]
[1643833406122,0.72409452,2713.6,2713.4,0.10545402]
[1643833406320,0.72409452,2713.6,2713.4,0.1]
[1643833406721,0.19761663,2713.7,2713.4,0.10330319]
[1643833407120,0.1842,2714.4,2713.4,0.10330319]
[1643833407320,1.56245396,2714.3,2713.5,1.10746301]
[1643833407523,0.00407454,2714.5,2713.5,3.16920635]
[1643833407721,0.00407454,2714.5,2714.2,0.80716325]
[1643833407923,0.00407454,2714.5,2713.8,0.00330271]
[1643833408120,0.16414047,2714.4,2713.8,0.00330271]
[1643833408322,0.00407454,2714.5,2714.1,0.92109]
[1643833408528,0.00407454,2714.5,2714.2,0.1842]
[1643833408920,0.81852937,2714.4,2714.0,0.1842]
[1643833409120,0.81852937,2714.4,2714.2,0.00545405]
[1643833409372,2.07743889,2714.3,2714.2,0.00545405]
[1643833409674,0.19042861,2714.3,2714.2,0.00545405]
[1643833410073,0.19042861,2714.3,2713.8,0.00196301]
[1643833410273,0.19042861,2714.3,2714.1,0.00545417]
[1643833411373,0.19042861,2714.3,2714.1,0.00545423]
[1643833412373,0.19042861,2714.3,2713.8,0.17162121]
[1643833412573,0.19042861,2714.3,2713.8,0.00196301]
[1643833412775,0.19042861,2714.3,2714.1,0.00545423]
[1643833413725,0.19042861,2714.3,2713.8,0.00196301]
[1643833413925,0.19042861,2714.3,2714.1,0.00545423]
[1643833414326,0.81852937,2714.4,2714.1,0.00545423]
[1643833414525,2.45847937,2714.8,2714.1,0.00545423]
[1643833414727,1.56230504,2714.7,2714.1,0.00545423]
[1643833414925,1.56230504,2714.7,2713.8,0.00196301]
[1643833415126,1.56230504,2714.7,2714.3,0.00545393]
[1643833415326,0.1842,2714.9,2714.3,0.00545393]
[1643833415327,1.76006221,2714.6,2714.3,0.00545393]
[1643833415527,0.69910645,2714.4,2714.3,0.00545393]
[1643833415730,0.69910645,2714.4,2714.0,0.00196301]
[1643833415930,0.19775717,2714.6,2714.0,0.00196301]
[1643833416327,1.56231394,2714.5,2714.0,0.00196301]
[1643833416976,0.19775717,2714.6,2714.0,0.00196301]
[1643833417377,0.0021567,2714.5,2713.9,1.85982273]
[1643833417576,0.0021567,2714.5,2714.0,0.5319662]
[1643833417777,0.0021567,2714.5,2714.0,2.6564662]
[1643833417977,0.0021567,2714.5,2714.0,6.5256662]
[1643833418175,0.0021567,2714.5,2714.1,3.6155662]
[1643833418479,0.1842,2715.5,2714.6,0.92088]
[1643833418677,0.18996782,2715.1,2714.6,1.84176]
[1643833418878,1.56198814,2715.0,2714.6,1.84176]
[1643833419079,1.56198814,2715.0,2714.3,3.6835]
[1643833419278,0.18996782,2715.1,2714.3,4.1676]
[1643833419477,1.56196826,2715.0,2714.3,4.1676]
[1643833419877,1.56196826,2715.0,2714.6,0.85870538]
[1643833420921,1.56196826,2715.0,2714.3,4.1676]
[1643833422122,0.93342225,2714.7,2714.3,4.1676]
[1643833422322,0.93342225,2714.7,2714.3,3.9835]
[1643833422323,0.15796733,2714.6,2714.3,3.9835]
[1643833422522,0.93342225,2714.7,2714.3,3.9835]
[1643833423525,0.00544793,2714.6,2714.3,2.14175]
[1643833424372,0.93342225,2714.7,2714.3,1.84175]
[1643833424573,0.00544799,2714.6,2714.3,1.84175]
[1643833424972,0.00544799,2714.6,2714.2,4.034019]
[1643833425174,0.00544799,2714.6,2714.2,3.735959]
[1643833425376,0.00544799,2714.6,2714.2,4.870059]
[1643833425574,0.1841,2715.4,2714.2,4.86461017]
[1643833425774,1.56196601,2715.3,2714.2,4.86461017]
[1643833426075,0.00544805,2714.5,2714.2,4.95433563]
[1643833426474,0.00544805,2714.5,2714.2,3.82023563]
[1643833426676,0.00544805,2714.5,2714.2,1.84731879]
[1643833426974,0.81402787,2714.6,2714.2,1.84187]
[1643833427174,0.00544801,2714.5,2714.2,1.84731876]
[1643833427375,0.00544801,2714.5,2714.2,2.04240484]
[1643833427979,1.1052,2715.4,2714.2,2.03695608]
[1643833428221,0.00544801,2714.5,2714.3,0.921]
[1643833429222,0.17910272,2714.9,2714.3,0.921]
[1643833429421,0.00544805,2714.5,2714.4,0.67978097]
[1643833429621,0.00544805,2714.5,2714.4,1.60075097]
[1643833429824,0.00544805,2714.5,2714.4,4.80262097]
[1643833430024,2.0,2716.0,2714.5,5.25]
[1643833430227,1.5616122,2715.9,2715.7,0.92045]
[1643833430424,0.1841,2716.1,2715.7,1.78718078]
[1643833430425,1.5616122,2715.8,2715.7,1.78718078]
[1643833430622,0.19329358,2716.1,2715.7,1.78718078]
[1643833430822,1.56145475,2716.0,2715.7,0.92045]
[1643833431024,1.56145475,2716.0,2715.2,0.1841]
[1643833431225,1.56145475,2716.0,2715.1,0.43816541]
[1643833431426,1.56145475,2716.0,2715.2,0.9207]
[1643833431878,0.18292989,2715.6,2715.3,0.86089484]
[1643833432674,0.18292989,2715.6,2715.1,2.09558541]
[1643833433075,0.18292989,2715.6,2715.5,1.84147]
[1643833433275,0.18292989,2715.6,2715.1,3.93689541]
[1643833433475,0.18292989,2715.6,2715.1,2.09558541]
[1643833433476,1.56166598,2715.5,2715.1,2.09558541]
[1643833433675,1.56166598,2715.5,2715.2,0.67456164]
[1643833433875,1.56166598,2715.5,2715.1,2.09558541]
[1643833434279,1.56711287,2715.5,2715.1,2.09558541]
[1643833434477,0.00544689,2715.5,2715.1,2.09558541]
[1643833434876,1.56174123,2715.4,2715.1,2.09558541]
[1643833435076,1.56174123,2715.4,2715.1,2.81799]
[1643833435275,1.56174123,2715.4,2715.1,0.25406541]
[1643833435476,0.00495206,2715.4,2715.1,0.25406541]
[1643833436528,1.56184543,2715.3,2714.8,3.8275]
[1643833436728,1.56184543,2715.3,2714.7,1.1787]
[1643833437524,0.17288657,2715.1,2714.7,1.94409502]
[1643833437724,0.17288657,2715.1,2714.7,1.1787]
[1643833437925,1.56199766,2715.0,2714.6,3.8649]
[1643833438124,1.56199766,2715.0,2714.5,3.8706]
[1643833438626,1.56199766,2715.0,2714.2,1.317]
[1643833438828,0.1841,2714.9,2714.2,1.1329]
[1643833439024,1.56199766,2714.8,2714.2,1.1329]
[1643833439481,0.00214734,2714.9,2714.2,1.1329]
[1643833439980,1.56426658,2714.9,2714.2,1.1329]
[1643833440181,1.56211924,2714.9,2714.2,1.1329]
[1643833440383,0.1841,2715.0,2714.6,0.19015435]
[1643833440680,0.1841,2715.4,2714.6,0.19015435]
[1643833441081,0.01220513,2715.7,2714.6,0.19015435]
[1643833441082,0.1841,2715.6,2714.6,0.19015435]
[1643833441283,0.90889234,2715.3,2714.7,0.86397229]
[1643833441481,0.39433293,2715.2,2714.7,0.86397229]
[1643833442682,0.00214734,2715.1,2714.7,0.86397229]
[1643833443633,0.1841,2715.6,2714.7,0.86397229]
[1643833444033,0.00214734,2715.0,2714.7,0.86397229]
[1643833444238,0.00214734,2715.0,2714.3,0.1841]
[1643833444441,0.00214734,2715.0,2714.1,0.1860662]
[1643833444639,0.1841,2714.9,2714.1,0.0019662]
[1643833445034,0.1841,2715.2,2714.1,0.0019662]
[1643833445236,0.90544758,2714.5,2714.4,0.00544187]
[1643833445434,0.00544102,2714.8,2714.4,0.00544187]
[1643833446034,1.80324133,2715.2,2714.1,0.0019662]
[1643833446235,0.00544106,2714.8,2714.5,0.0054418]
[1643833446634,0.83810114,2714.6,2714.5,0.0054418]
[1643833447102,1.04022782,2714.6,2714.5,0.0054418]
[1643833447399,1.04022782,2714.6,2714.1,0.0019662]
[1643833448599,0.1842,2714.9,2714.1,0.0019662]
[1643833448997,0.69790133,2714.9,2714.1,0.0019662]
[1643833449600,0.84598518,2714.5,2714.1,0.0019662]
[1643833449797,0.84598518,2714.5,2714.4,0.00329797]
[1643833450297,0.1842,2714.8,2714.4,0.00329797]
[1643833450930,0.1842,2714.8,2714.1,0.0019662]
[1643833451133,0.00543898,2714.8,2714.5,0.00543972]
[1643833451332,0.19127314,2714.7,2714.5,0.00543972]
[1643833451930,4.66536778,2714.6,2714.5,0.00543972]
[1643833452137,0.1841,2714.8,2714.1,0.91533124]
[1643833452333,0.00543898,2714.8,2714.5,0.00543972]
[1643833453333,0.93843315,2714.6,2714.1,0.91533124]
[1643833453531,0.93843315,2714.6,2714.5,0.00543976]
[1643833454133,0.00543902,2714.8,2714.5,0.00543976]
[1643833454581,0.1842,2714.9,2714.1,0.91533124]
[1643833454785,0.00543902,2714.8,2714.5,0.00543976]
[1643833455181,0.00543902,2714.8,2714.7,0.94374068]
[1643833455679,0.69790133,2715.3,2714.7,0.94374068]
[1643833455879,0.69790133,2715.4,2714.7,0.94374068]
[1643833456079,0.00501708,2714.9,2714.7,0.94374068]
[1643833456879,0.74427457,2715.4,2714.8,0.92092]
[1643833457079,0.00501702,2714.9,2714.8,0.92092]
[1643833457286,0.00501702,2714.9,2714.5,3.72829789]
[1643833457580,0.68666748,2714.8,2714.5,1.17241789]
[1643833457781,0.68666748,2714.8,2714.5,0.00501789]
[1643833458252,0.68666748,2714.8,2714.4,0.1841]
[1643833458440,0.68666748,2714.8,2714.5,0.0050178]
[1643833458441,0.69168459,2714.8,2714.5,0.0050178]
[1643833459137,0.00501711,2714.8,2714.5,0.0050178]
[1643833459339,0.69790133,2715.3,2714.4,0.1841]
[1643833459538,0.00501711,2714.8,2714.5,0.0050178]
[1643833460539,0.00501711,2714.8,2714.3,0.1841]
[1643833460540,2.42702251,2714.7,2714.3,0.1841]
[1643833460740,1.56213313,2714.6,2714.5,0.00507911]
[1643833461141,1.56213313,2714.6,2714.0,2.55393999]
[1643833461339,1.56213313,2714.6,2714.2,0.1841]
[1643833461538,1.56213313,2714.6,2714.1,0.1842]
[1643833462479,0.22433621,2714.5,2714.1,0.1842]
[1643833462685,1.56213313,2714.4,2714.1,0.1842]
[1643833465734,1.56213313,2714.4,2714.1,0.18960555]
[1643833466337,1.56213313,2714.4,2714.1,0.00540555]
[1643833466537,1.56213313,2714.4,2713.7,0.00197137]
[1643833466737,1.56213313,2714.4,2714.1,0.00540555]
[1643833467336,0.86100591,2714.2,2714.1,0.00540555]
[1643833467537,2.42313904,2714.2,2714.1,0.00540555]
[1643833467736,2.42313904,2714.2,2713.7,0.00197137]
[1643833467940,1.56236529,2714.1,2714.0,0.00540567]
[1643833468335,0.86100591,2714.2,2714.0,0.00540567]
[1643833468935,0.86100591,2714.2,2713.7,0.00197137]
[1643833469136,0.86100591,2714.2,2714.0,0.00540573]
[1643833469384,1.56236873,2714.1,2714.0,0.00540573]
[1643833469585,5.25,2714.0,2713.4,1.94246]
[1643833469789,0.01251394,2713.8,2713.1,3.2383]
[1643833469986,0.01251394,2713.8,2713.0,3.132069]
[1643833469987,1.56252309,2713.7,2713.0,1.941769]
[1643833470191,2.66582309,2713.7,2713.0,1.941769]
[1643833470384,1.56252309,2713.6,2713.0,1.941769]
[1643833470591,0.1842,2713.5,2713.0,1.941769]
[1643833470789,1.56252309,2713.4,2713.0,1.941769]
[1643833470986,0.18853491,2713.7,2713.0,1.941769]
[1643833471186,1.562709,2713.6,2713.0,1.941769]
[1643833471589,0.1842,2713.5,2713.0,1.941769]
[1643833471791,1.562709,2713.4,2713.0,1.941769]
[1643833472187,1.562709,2713.3,2713.0,1.941769]
[1643833472387,0.17484598,2713.1,2713.0,1.941769]
[1643833472587,0.68574377,2713.2,2713.0,1.941769]
[1643833474028,0.68574377,2713.2,2713.0,1.94714133]
[1643833474832,2.35261411,2713.6,2713.0,2.12941326]
[1643833475030,0.39774616,2713.6,2713.0,2.12941326]
[1643833475230,0.39774616,2713.6,2713.0,2.13478559]
[1643833475631,0.1842,2713.6,2713.0,2.13478559]
[1643833475834,0.1842,2713.6,2713.2,0.88236319]
[1643833476032,0.00970571,2713.7,2713.2,0.88236319]
[1643833476033,0.00433491,2713.7,2713.2,0.88236319]
[1643833476233,0.00433491,2713.7,2713.3,0.53]
[1643833476432,0.00970595,2713.7,2713.3,0.71957198]
[1643833477084,0.00970595,2713.7,2713.3,0.00537198]
[1643833477282,0.00433491,2713.7,2713.2,3.7909]
[1643833477482,0.00650056,2713.7,2713.2,3.7909]
[1643833478583,0.00433491,2713.7,2713.2,3.7909]
[1643833478785,0.00433491,2713.7,2713.3,0.00319951]
[1643833479184,1.56276728,2713.6,2713.3,0.00319951]
[1643833479385,0.00433491,2713.7,2713.3,0.00319951]
[1643833479585,0.00433491,2713.7,2713.1,3.93683449]
[1643833479586,0.20296915,2713.6,2713.1,1.28544628]
[1643833479787,2.0,2713.5,2713.1,0.1842]
[1643833479987,0.01688386,2713.7,2713.4,0.00319945]
[1643833479988,0.20108386,2713.7,2713.4,0.00319945]
[1643833480187,0.00433491,2713.7,2713.4,0.00319945]
[1643833480385,1.56280332,2713.6,2713.4,0.00319945]
[1643833480636,1.56280332,2713.5,2713.4,0.00319945]
[1643833480833,1.56280332,2714.0,2713.0,0.45880746]
[1643833481036,0.9332048,2713.6,2713.1,0.1842]
[1643833481232,1.56280214,2713.5,2713.1,0.1842]
[1643833482436,1.56280214,2713.5,2713.0,0.64300746]
[1643833482633,1.56280214,2713.5,2713.0,0.45880746]
[1643833483135,0.93537114,2713.6,2713.0,0.45880746]
[1643833483336,1.56278459,2713.5,2713.0,0.45880746]
[1643833483734,1.56278459,2713.5,2713.1,0.00536166]
[1643833484137,0.21110349,2713.4,2713.1,0.00536166]
[1643833484386,1.5629317,2713.3,2713.1,0.00536166]
[1643833484585,1.5629317,2713.3,2713.0,0.45880746]
[1643833484784,0.95483477,2713.1,2713.0,0.45880746]
[1643833490236,0.21110349,2713.4,2713.0,0.45880746]
[1643833490839,0.21110349,2713.4,2713.1,0.00500099]
[1643833491039,1.56292751,2713.3,2713.1,0.006971]
[1643833491441,0.86904693,2713.2,2713.1,0.006971]
[1643833491638,0.86904693,2713.2,2713.1,0.00500099]
[1643833491883,0.86904693,2713.2,2713.0,0.45880746]
[1643833492086,0.86904693,2713.2,2713.0,0.46380851]
[1643833492285,0.85652852,2713.2,2713.0,0.46380851]
[1643833492490,1.77819702,2713.2,2713.0,0.46380851]
[1643833492688,1.56306001,2713.1,2713.0,0.46380851]
[1643833492887,3.50592841,2713.1,2713.0,0.45880746]
[1643833493487,1.56306001,2713.1,2713.0,0.45880746]
[1643833494091,3.49492256,2713.1,2713.0,0.45880746]
[1643833495088,1.56306001,2713.1,2713.0,0.45880746]
[1643833496130,3.51785453,2713.1,2713.0,0.45880746]
[1643833497632,3.51785453,2713.1,2712.9,0.00499225]
[1643833497633,5.25,2713.0,2712.9,0.00499225]
[1643833497832,5.25,2713.0,2712.5,0.00197001]
[1643833497833,9.24190251,2713.0,2712.5,0.00197001]
[1643833498033,1.56306001,2712.9,2712.5,0.01997719]
[1643833498235,2.61077844,2712.8,2712.5,0.01997719]
[1643833498431,1.56306001,2712.7,2712.5,0.01997719]
[1643833498633,6.29510834,2712.6,2712.5,0.01997719]
[1643833498833,7.85816835,2712.6,2712.5,0.01997719]
[1643833499034,7.85816835,2712.6,2712.3,0.00197001]
[1643833499239,0.99270391,2712.6,2712.4,0.00499414]
[1643833499481,2.02802599,2712.5,2712.4,0.00499414]
[1643833499682,1.94960629,2712.5,2712.4,0.00499414]
[1643833499885,0.83727368,2712.1,2712.0,0.01997955]
[1643833500281,0.83727368,2712.1,2711.9,0.00197001]
[1643833500582,0.83727368,2712.1,2711.5,0.18617001]
[1643833500982,0.83727368,2712.1,2711.6,0.00197001]
[1643833501284,1.75927368,2712.1,2711.7,0.1842]
[1643833501482,3.75828514,2712.1,2711.6,0.00197001]
[1643833502082,1.55904914,2712.1,2711.6,0.00197001]
[1643833502286,1.94121116,2712.0,2711.6,0.00197001]
[1643833502483,1.93956043,2712.0,2711.6,0.00197001]
[1643833502682,2.48104914,2712.1,2711.6,0.00197001]
[1643833502882,2.48104914,2712.1,2711.7,0.00499484]
[1643833503332,1.92801556,2712.0,2711.7,0.00499484]
[1643833503731,1.92801556,2712.0,2711.6,0.00197001]
[1643833503931,1.92801556,2712.0,2711.7,0.00499478]
[1643833504635,2.48104914,2712.1,2711.7,0.00499478]
[1643833504831,0.72177546,2712.1,2711.7,0.00499478]
[1643833505032,0.1842,2712.4,2711.6,0.00197001]
[1643833505332,2.0,2712.7,2711.8,0.00499439]
[1643833505533,1.5634148,2712.6,2711.9,0.1842]
[1643833505732,1.5634148,2712.5,2711.9,0.1842]
[1643833505931,1.16978701,2712.2,2711.8,1.4019644]
[1643833506131,1.16978701,2712.2,2711.8,0.00108043]
[1643833506634,0.1842,2712.8,2712.1,0.00499404]
[1643833506904,0.1842,2712.9,2712.1,0.00499404]
[1643833507090,1.56331413,2712.8,2712.2,0.1842]
[1643833507295,5.169,2713.0,2712.2,0.1842]
[1643833507490,3.56329649,2712.9,2712.2,0.1842]
[1643833507690,3.56329649,2712.9,2712.3,0.00696388]
[1643833507691,2.78942817,2712.8,2712.3,0.00696388]
[1643833507891,1.56329649,2712.7,2712.3,0.00696388]
[1643833508089,0.1842,2712.6,2712.3,0.00696388]
[1643833508288,1.56329649,2712.5,2712.3,0.00499387]
[1643833508689,0.1842,2712.7,2711.9,0.00197001]
[1643833508892,1.56344159,2712.6,2712.3,0.00499384]
[1643833509091,1.78413439,2712.6,2712.3,0.00499384]
[1643833509294,0.2206928,2712.6,2712.3,0.00499384]
[1643833509893,5.3532,2713.0,2712.1,0.00197001]
[1643833510089,1.56336645,2712.9,2712.3,0.00499388]
[1643833510290,0.81484658,2712.6,2712.3,0.00499388]
[1643833510939,0.17981541,2712.5,2712.1,0.00197001]
[1643833511140,2.13363706,2712.5,2712.1,0.00197001]
[1643833511437,1.56346678,2712.4,2712.3,0.00499388]
[1643833512236,1.56346678,2712.4,2711.9,0.00197001]
[1643833512440,1.56346678,2712.4,2712.2,0.00499387]
[1643833512637,2.97689443,2712.3,2712.2,0.00499387]
[1643833512840,4.54036121,2712.3,2712.2,0.00499387]
[1643833513039,5.54036121,2712.3,2712.2,0.00499387]
[1643833513438,5.54036121,2712.3,2711.5,0.00197001]
[1643833513638,1.56346678,2712.2,2712.1,0.00499399]
[1643833513839,3.81801626,2712.2,2712.1,0.00499399]
[1643833514039,1.56346678,2712.2,2712.1,0.00499399]
[1643833514239,3.50747463,2712.2,2712.1,0.00499399]
[1643833514486,1.56346678,2712.2,2712.1,0.00499399]
[1643833514687,1.56346678,2712.2,2711.6,0.01997985]
[1643833514688,1.56346678,2712.2,2711.6,0.00197001]
[1643833514890,4.24423279,2712.9,2712.0,0.00499411]
[1643833514891,0.1843,2712.7,2712.0,0.00499411]
[1643833515093,1.56338817,2712.6,2712.0,0.00499411]
[1643833515288,1.56338817,2712.6,2712.1,0.1842]
[1643833515488,3.0,2712.8,2712.1,0.1843]
[1643833515688,2.56330018,2712.7,2712.1,0.1843]
[1643833515889,0.944613,2712.8,2712.2,0.21660833]
[1643833516189,0.944613,2712.8,2712.2,2.57168]
[1643833516589,0.99999999,2712.6,2712.2,1.6501]
[1643833516988,0.944613,2712.8,2712.2,1.6501]
[1643833517188,1.77482493,2712.7,2712.2,1.6501]
[1643833517390,0.21157367,2712.7,2712.2,1.6501]
[1643833518359,1.56329871,2712.6,2712.2,1.6501]
[1643833518564,1.0,2712.3,2710.9,2.75093816]
[1643833518762,1.0,2712.3,2709.8,2.88980848]
[1643833518763,5.99999999,2711.0,2709.8,2.88980848]
[1643833518958,1.0,2711.4,2709.1,1.29070324]
[1643833518959,0.99999999,2710.3,2709.1,1.29070324]
[1643833519159,0.00496299,2710.2,2708.5,2.76765]
[1643833519356,0.00496299,2710.2,2708.4,3.83311781]
[1643833519357,0.1918103,2710.3,2708.4,3.83311781]
[1643833519560,0.1844,2710.4,2709.9,0.18646678]
[1643833519757,0.99999999,2710.9,2709.9,0.18646678]
[1643833519957,0.53,2710.5,2709.9,0.18646678]
[1643833520260,0.99999999,2710.9,2709.9,0.18646678]
[1643833520261,1.52999999,2710.9,2709.9,0.18646678]
[1643833520657,0.18858298,2711.3,2709.9,0.18646678]
[1643833520658,0.00418298,2711.3,2710.6,0.68172328]
[1643833521156,0.00418298,2711.3,2710.6,0.98172328]
[1643833521759,0.00418298,2711.3,2711.2,0.16468828]
[1643833522382,0.00418298,2711.3,2710.7,4.22430276]
[1643833522786,0.20495891,2711.9,2710.7,4.22430276]
[1643833522983,0.20495891,2711.9,2710.8,1.0]
[1643833522984,1.56397429,2711.8,2710.8,1.0]
[1643833523186,1.56397429,2711.8,2710.9,2.84196453]
[1643833523383,0.00536793,2711.4,2711.0,1.0]
[1643833523584,0.00536793,2711.4,2711.1,2.11505158]
[1643833523785,0.00536793,2711.4,2711.1,2.41505158]
[1643833523985,0.00536793,2711.4,2711.2,0.95574793]
[1643833524184,0.37699869,2712.2,2711.3,2.1618369]
[1643833524387,1.56375687,2712.1,2711.3,2.1618369]
[1643833524584,0.00536793,2711.4,2711.3,4.4118369]
[1643833525184,0.00536793,2711.4,2711.3,4.7118369]
[1643833525390,0.21473862,2712.0,2711.3,4.7118369]
[1643833525637,0.21473862,2712.0,2711.4,0.92169]
[1643833525839,0.00536787,2711.5,2711.4,0.92169]
[1643833526039,0.00536787,2711.5,2711.4,9.87690458]
[1643833526237,0.1844,2712.9,2711.5,5.2553]
[1643833526436,5.169,2713.3,2712.3,0.92137]
[1643833526437,1.56343062,2712.8,2712.3,0.92137]
[1643833526636,1.56343062,2712.7,2712.3,0.92137]
[1643833526838,1.76728525,2712.6,2712.3,0.92137]
[1643833527035,0.20385463,2712.6,2712.3,0.92137]
[1643833527236,0.1842,2713.2,2712.3,0.92137]
[1643833527436,1.56336903,2713.1,2712.4,2.16815267]
[1643833527637,1.56336903,2713.1,2712.7,0.92125]
[1643833527838,1.56336903,2713.0,2712.4,4.01065267]
[1643833528141,0.00536623,2712.9,2712.4,4.01065267]
[1643833528337,0.00536623,2712.9,2712.5,0.21517299]
[1643833528937,0.00536623,2712.9,2712.4,3.68495]
[1643833529139,0.17281439,2713.1,2712.4,3.68495]
[1643833529140,1.56330011,2712.8,2712.4,3.68495]
[1643833529386,0.00220593,2712.8,2712.4,3.68495]
[1643833529790,0.19011595,2712.6,2712.4,1.84245]